Workbook

Sheet Instructions
B1: Budget Considerations for Various Herd Sizes of Meat Goat Enterprises in Tennessee
B3: John C. Campbell, Extension Area Specialist, University of Tennessee Extension
B4: An Peischel, Assistant Professor, Tennessee State University Cooperative Extension
B5: Rob Holland, Director, Center for Profitable Agriculture, University of Tennessee Extension
B7: This set of three meat goat production budgets is presented here in Excel 2007 format. The budgets present scenarios for three different herd sizes: 50 does, 100 does, and 180 does. Differences in inputs result from assumed differences in management intensity and management practices employed. The budget for each herd size is developed using the same format of nine different tables. That is, the same information is presented for each herd-size budget through nine different tables. The nine tables for the 50-doe budget are designated as A-1, A-2…A-9. Similarly, the tables of the 100-doe budget are designated as B-1, B-2…B-9 and the same table-numbering system is used for the 180-doe budget. The various parameters and general description of the budgeted scenario is presented in first table of each herd-size budget. The first table of each herd-size budget is labeled as Table 1. A letter (A, B, or C) is used prior to the table number to designate the herd-size system. Table 1 for the 50-doe system is labeled Table A-1 while Table 2 for the 50-doe system is labeled Table A-2. Table 2 provides the overall estimated costs and returns for the particular system. Table 3 shows the annual costs for cool-season pasture while Table 4 shows the establishment expenses for cool-season pasture. Table 5 shows the annual expenses for warm- season pastures while Table 6 shows the establishment costs for warm-season pasture. Table 7 contains veterinary and medicine expenses while Table 8 contains a description of marketing expenses. Table 9 shows the fixed expenses for buildings, equipment, machinery and livestock. Certain items contained in the nine tables are further explained with a list of footnotes that are presented at the end of each budget.
B24: Each budget is contained on a specific worksheet in the workbook file. The data worksheet contains input prices for the major inputs in each of the budgets. Changes in prices can be made in the cells in red which will change that input price in each of the budgets. In each budget, values in red can be changed to fit individual producer's specific situations.
B29: Movement among the tables within a worksheet can be accomplished by clicking the appropriate button at each table. The entire spreadsheet or individual tables can be printed by clicking the appropriate print button. Macros must be enabled for the buttons to function.
B33: When saving as an Excel 2007 file with a new file name, select "save as Excel Macro-Enabled Workbook."
B35: When saving as an Excel 1997-2003 files with a new name, select "save as Excel 97-2003 Workbook" and click continue in the "Compatibility Checker" window.
B38: The meat goat production budgets presented here are intended only as a guide. Producers should use their own information when available and personalized adjustments should be made as needed. The budget format presented here includes interest expenses for resources used in the goat enterprise. The underlying assumption of this budget is that existing land resources are used in the enterprise.
B44: Prices for productions inputs, especially fuel, livestock feed, and fertilizer, have been extremely volatile in recent years. Therefore it is extremely important for individuals using this budget for planning purposes to update input prices according to current conditions. Budgets are only guidelines and a starting point for analysis. Adjustments can and should be made for unique resource combinations.
B51: Budgets for a single enterprise such as meat goat production are a beginning point for whole-farm planning. Once producers have studied and revised enterprise budgets to fit their individual situation, they should develop a whole-farm plan. Whole-farm planning incorporates all crop and livestock enterprises into one plan. The plan also includes items such as taxes, insurance, farm mortgage payments, family living expenses, off-farm income and income taxes.

Sheet Data
B1: Input Cost Data
A3: Item | C3: Unit | D3: Price
A4: Feed
B5: Hay | C5: ton | D5: 80
B6: Corn | C6: bushel | D6: 4
B7: Concentrate Kid Feed | C7: cwt. | D7: 14.8
B8: Mineral Mix | C8: pound | D8: 0.36
A10: Seed
B11: Chicory | C11: pound | D11: 6
B12: Orchardgrass | C12: pound | D12: 4
B13: Fescue | C13: pound | D13: 1.5
B14: Red Clover | C14: pound | D14: 3.25
B15: White Clover | C15: pound | D15: 3.65
B16: Sericea Lespedeza | C16: pound | D16: 6.25
B17: Big Bluestem | C17: pound | D17: 11
A19: Fertilizer
B20: N | C20: pound | D20: 0.43
B21: P205 | C21: pound | D21: 0.52
B22: K20 | C22: pound | D22: 0.44
B23: Custom Application | C23: acre | D23: 5
B24: Lime | C24: ton | D24: 34.5
A26: Machinery-Variable Costs
B27: Pasture Fuel | C27: acre | D27: 1.82
B28: Pasture Oil & Filter | C28: acre | D28: 0.27
B29: Pasture Repairs | C29: acre | D29: 1.8
B30: Pasture Establishment Fuel | C30: acre | D30: 20.24
B31: Pasture Establishment Oil & Filter | C31: acre | D31: 3.04
B32: Pasture Establishment Repairs | C32: acre | D32: 13.2
B33: Utility Vehicle Fuel | C33: hour | D33: 1.5 | E33: 0.6 gallons per hour
A35: Machinery-Fixed Costs
B36: Depreciation | C36: acre | D36: 0.46
B37: Interest | C37: acre | D37: 0.71
B38: Housing & Insurance | C38: acre | D38: 0.09
B39: Establishment Depreciation | C39: acre | D39: 6.08
B40: Establishment Interest | C40: acre | D40: 9.03
B41: Establishment Housing & Insurance | C41: acre | D41: 0.96
A43: Veterinary
B44: Deworming | C44: dose | D44: 0.5
B45: Clostridium/Tetanus | C45: dose | D45: 0.28
B46: Lepto | C46: dose | D46: 0.37
A48: Marketing
B49: Auction Market Fee | C49: head | D49: 5.5
B50: Auction Market Hauling | C50: head | D50: 1
B51: Direct Sales Cost | C51: head | D51: 4
B52: Direct Sales Hauling | C52: head | D52: 2
A55: General
B56: Guard Dog Feed and Health | C56: year | D56: 250
B57: Public Water Rate | C57: 1,000 gal | D57: 6.6
B58: Labor | C58: hr | D58: 10
B59: Operating Interest | C59: percent | D59: 0.05
B60: Fixed Interest | C60: percent | D60: 0.05

Sheet 50does
F4: MEAT GOAT PRODUCTION (50 DOES AND 1 BUCK)
F6: FORAGE BASE OF 15 ACRES, AVERAGE MANAGEMENT
F7: ESTIMATED COSTS AND RETURNS TO LAND, MANAGEMENT AND RISK
B9: TABLE A1 | C9: INPUT PARAMETERS1
B10: Herd Size (Does) | E10: 50 | G10: Percent Weaned Kid Crop | J10: 1.5
B11: Bucks | E11: 1
B12: Kids Sold Auction Market (head) | E12: =J12*((E10*J10)-((E10*J10)*J16)) -> 63.75 | G12: Pct. Kids Auction Market | J12: 1
B13: Selling Weight Auction Market | E13: 62
B14: Kids Sold Direct (head) | E14: =J14*((E10*J10)-((E10*J10)*J16)) -> 0 | G14: Pct. Kids Direct Market | J14: 0
B15: Selling Weight Direct Market | E15: 62
B16: Number of Cull Stock Sold | E16: =(E10*J16)-E18 -> 6.5 | G16: Held for Replacements | J16: 0.15
B17: Selling Weight Cull Does | E17: 70
B18: Number of (Does) Died | E18: =E10*J18 -> 1 | G18: Doe Mortality Rate | J18: 0.02
B19: Lbs. Corn Doe/Day | E19: 0.5 | G19: Days on Corn (Does) | J19: 90
B20: Lbs. Hay Doe/Day | E20: 3.5 | G20: Days on Hay (Does) | J20: 120
B21: Lbs. Concentrate Kid/Day Pre-weaning | E21: 0.25 | G21: Days Pre-Weaning (Kids) | J21: 21
B22: Lbs. Concenrate Kid/Day Post-weaning | E22: 0.75 | G22: Days Post-weaning (Kids) | J22: 60
B23: Lbs. Hay Kid/Day | E23: 1 | G23: Days on Hay (Kids) | J23: 0
B24: Oz Mineral/Day | E24: 0.33 | G24: Acres in Forage | J24: 15
B26: TABLE A2 | C26: ESTIMATED COSTS AND RETURNS
B27: ITEM | C27: DESCRIPTION | E27: UNIT | F27: QUANTITY | G27: PRICE | H27: TOTAL | I27: PER DOE | J27: YOUR FARM
B28: REVENUE
B29: Kids Auction2 | C29: =E12 -> 63.75 | D29: Head | E29: cwt | F29: =(E12*E13)/100 -> 39.525 | G29: 118 | H29: =F29*G29 -> 4663.95 | I29: =H29/$E$10 -> 93.279
B30: Kids Direct2 | C30: =E14 -> 0 | D30: Head | E30: cwt | F30: =(E14*E15)/100 -> 0 | G30: 200 | H30: =F30*G30 -> 0 | I30: =H30/$E$10 -> 0
B31: Cull Doe | C31: =E16 -> 6.5 | D31: Head | E31: cwt | F31: =(E16*E17)/100 -> 4.55 | G31: 70 | H31: =F31*G31 -> 318.5 | I31: 6.37
H32: ---------------- | I32: ---------------- | J32: --------------
E33: TOTAL REVENUE | H33: =SUM(H29:H31) -> 4982.45 | I33: =SUM(I29:I31) -> 99.649
B35: VARIABLE EXPENSES
B36: Hay3 | E36: ton | F36: =((J20*E20*(E10+E11+(E10*J16)))/2000)+((J23*E23*(E10*J10))/2000) -> 12.285 | G36: =Data!$D$5 -> 80 | H36: =F36*G36 -> 982.8 | I36: =H36/$E$10 -> 19.656
B37: Corn | D37: Breeding | E37: bushels | F37: =((E10+E11+(E10*J16))*E19*J19)/56 -> 47.00892857 | G37: =Data!$D$6 -> 4 | H37: =F37*G37 -> 188.0357143 | I37: 3.760714286
B38: Purchased Concentrate | D38: Kids | E38: cwt | F38: =((J22*E22*(E10*J10))/100)+((J21*E21*(E10*J10))/100) -> 37.6875 | G38: =Data!$D$7 -> 14.8 | H38: =F38*G38 -> 557.775 | I38: 11.1555
B39: Cool-Season Pasture4 | D39: Table A3 | E39: acre | F39: =J24*0.7 -> 10.5 | G39: =S118 -> 60.00783333 | H39: =F39*G39 -> 630.08225 | I39: 12.601645
B40: Warm-Season Pasture4 | D40: Table A5 | E40: acre | F40: =J24*0.3 -> 4.5 | G40: =AC196 -> 45.9610625 | H40: 206.8247813 | I40: 4.136495625
B41: Mineral Mix | E41: lb | F41: =(((E10+E11)*E24)/16)*365 -> 383.934375 | G41: =Data!$D$8 -> 0.36 | H41: 138.216375 | I41: 2.7643275
B42: Vet & Med | C42: Table A7 | H42: =AL257 -> 323.275 | I42: 6.4655
B43: Guardian Dogs5 | C43: Feed & Health | E43: each | F43: 1 | G43: =Data!$D$56 -> 250 | H43: =F43*G43 -> 250 | I43: 5
B44: Water6 | E44: 1,000 gal | F44: 34.12 | G44: =Data!$D$57 -> 6.6 | H44: 225.192 | I44: 4.50384
B45: Marketing | C45: Table A8 | H45: =AJ271 -> 456.625 | I45: 9.1325
B46: Machinery7 | C46: Fuel | E46: hour | F46: 45 | G46: =Data!$D$33 -> 1.5 | H46: 67.5 | I46: 1.35
B47: Machinery | C47: Repairs | H47: =AW299 -> 280 | I47: 5.6
B48: Operating Interest - 6 months | F48: =SUM(H36:H47) -> 4306.326121 | G48: =Data!$D$59 -> 0.05 | H48: =F48*(G48/2) -> 107.658153 | I48: 2.15316306
H49: - | I49: - | J49: --------------
E50: TOTAL VARIABLE EXPENSES | H50: =SUM(H36:H48) -> 4413.984274 | I50: =H50/$E$10 -> 88.27968547
D51: RETURN ABOVE VARIABLE EXPENSES | H51: =H33-H50 -> 568.4657265 | I51: 11.36931453
B53: DEPRECIATION AND REPAIRS (FIXED COST)8
B54: Depreciation | C54: Buildings, equipment | E54: Table A9 | H54: =AT285+AT286+AT287+AT288 -> 101 | I54: =H54/$E$10 -> 2.02
B55: Repairs | C55: Buildings, equipment | E55: Table A9 | H55: =AW285+AW286+AW287+AW288 -> 56.93 | I55: 1.1386
B56: Depreciation | C56: Livestock | E56: Table A9 | H56: =AT306 -> 125 | I56: 2.5
B57: Depreciation | C57: Fences | E57: Table A9 | H57: =AT289+AT290+AT291 -> 244.7581333 | I57: 4.895162667
B58: Repairs | C58: Fences | E58: Table A9 | H58: =AW289+AW290+AW291 -> 207.081 | I58: 4.14162
B59: Depreciation | C59: Machinery | E59: Table A9 | H59: =AT299 -> 466.6666667 | I59: 9.333333333
H60: - | I60: - | J60: --------------
E61: TOTAL FIXED EXPENSES | H61: =SUM(H54:H59) -> 1201.4358 | I61: =H61/$E$10 -> 24.028716
D62: TOTAL VARIABLE & FIXED EXPENSES | H62: =H50+H61 -> 5615.420074 | I62: 112.3084015
B63: RETURN TO LAND, LABOR, CAPITAL, MANAGEMENT, RISK | H63: =H51-H61 -> -632.9700735 | I63: -12.65940147
B65: INTEREST (FIXED COST)9
B66: Livestock | C66: Table A9 | H66: =AV306 -> 243.125 | I66: =H66/$E$10 -> 4.8625
B67: Bldgs. & Equip | C67: Table A9 | H67: =AV285+AV286+AV287+AV288 -> 19.825 | I67: 0.3965
B68: Fences | C68: Table A9 | H68: =AV289+AV290+AV291 -> 103.5405 | I68: 2.07081
B69: Machinery | C69: Table A9 | H69: =AV299 -> 175 | I69: 3.5
H70: - | I70: - | J70: --------------
D71: TOTAL INTEREST EXPENSE | H71: =SUM(H66:H69) -> 541.4905 | I71: =SUM(I66:I69) -> 10.82981
C72: TOTAL VARIABLE, FIXED, INTEREST EXPENSE | H72: =H62+H71 -> 6156.910574 | I72: =H72/$E$10 -> 123.1382115
B73: NET RETURN TO LAND, LABOR, MANAGEMENT, RISK | H73: =H63-H71 -> -1174.460574 | I73: -23.48921147
B75: LABOR EXPENSES
B76: LABOR10 | E76: hour | F76: 150 | G76: =Data!$D$58 -> 10 | H76: =F76*G76 -> 1500 | I76: =H76/$E$10 -> 30
D78: TOTAL ALL EXPENSES | H78: =H72+H76 -> 7656.910574 | I78: =H78/$E$10 -> 153.1382115
C79: RETURN TO LAND, MANAGEMENT, RISK | H79: =H73-H76 -> -2674.460574 | I79: -53.48921147
M87: TABLE A3 | N87: COOL-SEASON PASTURE, ANNUAL EXPENSES PER ACRE
M89: ITEM | N89: DESCRIPTION | P89: UNIT | Q89: QUANTITY | R89: PRICE | S89: TOTAL | T89: YOUR FARM
M90: VARIABLE EXPENSES
M91: Seed | P91: lb | Q91: 0 | R91: 0 | S91: =Q91*R91 -> 0
M92: Fertilizer | N92: N | P92: lb | Q92: 20 | R92: =Data!$D$20 -> 0.43 | S92: =Q92*R92 -> 8.6
N93: P2O5 | P93: lb | Q93: 10 | R93: =Data!$D$21 -> 0.52 | S93: =Q93*R93 -> 5.2
N94: K2O | P94: lb | Q94: 10 | R94: =Data!$D$22 -> 0.44 | S94: =Q94*R94 -> 4.4
N95: Custom Application | P95: acre | Q95: 1 | R95: =Data!$D$23 -> 5 | S95: 5
M96: Lime | N96: Custom Application | P96: acre | Q96: 0.2 | R96: =Data!$D$24 -> 34.5 | S96: 6.9
M97: Machinery | N97: Fuel | P97: acre | Q97: 1 | R97: =Data!$D$27 -> 1.82 | S97: 1.82
N98: Oil & Filter | P98: acre | Q98: 1 | R98: =Data!$D$28 -> 0.27 | S98: 0.27
N99: Repairs | P99: acre | Q99: 1 | R99: =Data!$D$29 -> 1.8 | S99: 1.8
M100: Operating Interest - 6 months | Q100: =SUM(S91:S99) -> 33.99 | R100: =Data!$D$59 -> 0.05 | S100: =Q100*(R100/2) -> 0.84975
S101: - | T101: --------------
P102: TOTAL VARIABLE EXPENSES | S102: =SUM(S91:S100) -> 34.83975
M105: DEPRECIATION AND INTEREST (FIXED COST)
M106: Machinery | N106: Depreciation | P106: acre | Q106: 1 | R106: =Data!$D$36 -> 0.46 | S106: =Q106*R106 -> 0.46
N107: Interest | P107: acre | Q107: 1 | R107: =Data!$D$37 -> 0.71 | S107: 0.71
N108: Housing & Insurance | P108: acre | Q108: 1 | R108: =Data!$D$38 -> 0.09 | S108: 0.09
M109: Establishment | N109: Pro-rated | P109: acre | Q109: 1 | R109: =S156 -> 20.50808333 | S109: 20.50808333
S110: - | T110: --------------
P111: TOTAL FIXED EXPENSES | S111: =SUM(S106:S109) -> 21.76808333
O112: TOTAL VARIABLE & FIXED EXPENSES | S112: =S102+S111 -> 56.60783333
M115: LABOR EXPENSES
M116: LABOR | P116: hour | Q116: 0.34 | R116: =Data!$D$58 -> 10 | S116: =Q116*R116 -> 3.4
O118: TOTAL ALL ANNUAL EXPENSES | S118: =S102+S111+S116 -> 60.00783333
M121: TABLE A4 | N121: COOL-SEASON PASTURE, ESTABLISHMENT EXPENSES PER ACRE
M123: ITEM | N123: DESCRIPTION | P123: UNIT | Q123: QUANTITY | R123: PRICE | S123: TOTAL | T123: YOUR FARM
M124: VARIABLE EXPENSES
M125: Seed | N125: Fescue | P125: lb | Q125: 15 | R125: =Data!$D$13 -> 1.5 | S125: =Q125*R125 -> 22.5
P126: lb | Q126: 0 | R126: =Data!$D$11 -> 6 | S126: =Q126*R126 -> 0
N127: Red Clover | P127: lb | Q127: 5 | R127: =Data!$D$14 -> 3.25 | S127: =Q127*R127 -> 16.25
N128: White Clover | P128: lb | Q128: 3 | R128: =Data!$D$15 -> 3.65 | S128: 10.95
M129: Fertilizer | N129: N | P129: lb | Q129: 30 | R129: =Data!$D$20 -> 0.43 | S129: =Q129*R129 -> 12.9
N130: P2O5 | P130: lb | Q130: 30 | R130: =Data!$D$21 -> 0.52 | S130: =Q130*R130 -> 15.6
N131: K2O | P131: lb | Q131: 30 | R131: =Data!$D$22 -> 0.44 | S131: =Q131*R131 -> 13.2
N132: Custom Application | P132: acre | Q132: 1 | R132: =Data!$D$23 -> 5 | S132: 5
M133: Lime | N133: Custom Application | P133: acre | Q133: 2 | R133: =Data!$D$24 -> 34.5 | S133: 69
M134: Machinery | N134: Fuel | P134: acre | Q134: 1 | R134: =Data!$D$30 -> 20.24 | S134: 20.24
N135: Oil & Filter | P135: acre | Q135: 1 | R135: =Data!$D$31 -> 3.04 | S135: 3.04
N136: Repairs | P136: acre | Q136: 1 | R136: =Data!$D$32 -> 13.2 | S136: 13.2
M137: Operating Interest - 6 months | Q137: =SUM(S125:S136) -> 201.88 | R137: =Data!$D$59 -> 0.05 | S137: =Q137*(R137/2) -> 5.047
S138: - | T138: --------------
P139: TOTAL VARIABLE EXPENSES | S139: =SUM(S125:S137) -> 206.927
M142: DEPRECIATION AND INTEREST (FIXED COST)
M143: Machinery | N143: Depreciation | P143: acre | Q143: 1 | R143: =Data!$D$39 -> 6.08 | S143: =Q143*R143 -> 6.08
N144: Interest | P144: acre | Q144: 1 | R144: =Data!$D$40 -> 9.03 | S144: 9.03
N145: Housing & Insurance | P145: acre | Q145: 1 | R145: =Data!$D$41 -> 0.96 | S145: 0.96
S146: - | T146: --------------
P147: TOTAL FIXED EXPENSES | S147: =SUM(S143:S145) -> 16.07
O148: TOTAL VARIABLE & FIXED EXPENSES | S148: =S139+S147 -> 222.997
M151: LABOR EXPENSES
M152: LABOR | P152: hour | Q152: 2.31 | R152: =Data!$D$58 -> 10 | S152: =Q152*R152 -> 23.1
O154: TOTAL ESTABLISHMENT EXPENSES | S154: =S139+S147+S152 -> 246.097
M156: PRO-RATED SHARE ESTABLISHMENT | P156: years | Q156: 12 | S156: =S154/Q156 -> 20.50808333
W165: TABLE A5 | X165: WARM-SEASON PASTURE, ANNUAL EXPENSES PER ACRE
W167: ITEM | X167: DESCRIPTION | Z167: UNIT | AA167: QUANTITY | AB167: PRICE | AC167: TOTAL | AD167: YOUR FARM
W168: VARIABLE EXPENSES
W169: Seed | Z169: lb | AA169: 0 | AB169: 0 | AC169: =AA169*AB169 -> 0
W170: Fertilizer | X170: N | Z170: lb | AA170: 0 | AB170: =Data!$D$20 -> 0.43 | AC170: =AA170*AB170 -> 0
X171: P2O5 | Z171: lb | AA171: 10 | AB171: =Data!$D$21 -> 0.52 | AC171: =AA171*AB171 -> 5.2
X172: K2O | Z172: lb | AA172: 10 | AB172: =Data!$D$22 -> 0.44 | AC172: =AA172*AB172 -> 4.4
X173: Custom Application | Z173: acre | AA173: 1 | AB173: =Data!$D$23 -> 5 | AC173: 5
W174: Lime | X174: Custom Application | Z174: acre | AA174: 0 | AB174: =Data!$D$24 -> 34.5 | AC174: 0
W175: Machinery | X175: Fuel | Z175: acre | AA175: 1 | AB175: =Data!$D$27 -> 1.82 | AC175: 1.82
X176: Oil & Filter | Z176: acre | AA176: 1 | AB176: =Data!$D$28 -> 0.27 | AC176: 0.27
X177: Repairs | Z177: acre | AA177: 1 | AB177: =Data!$D$29 -> 1.8 | AC177: 1.8
W178: Operating Interest - 6 months | AA178: =SUM(AC169:AC177) -> 18.49 | AB178: =Data!$D$59 -> 0.05 | AC178: =AA178*(AB178/2) -> 0.46225
AC179: - | AD179: --------------
Z180: TOTAL VARIABLE EXPENSES | AC180: =SUM(AC169:AC178) -> 18.95225
W183: DEPRECIATION AND INTEREST (FIXED COST)
W184: Machinery | X184: Depreciation | Z184: acre | AA184: 1 | AB184: =Data!$D$36 -> 0.46 | AC184: =AA184*AB184 -> 0.46
X185: Interest | Z185: acre | AA185: 1 | AB185: =Data!$D$37 -> 0.71 | AC185: 0.71
X186: Housing & Insurance | Z186: acre | AA186: 1 | AB186: =Data!$D$38 -> 0.09 | AC186: 0.09
W187: Establishment | X187: Pro-rated | Z187: acre | AA187: 1 | AB187: =AC234 -> 22.3488125 | AC187: 22.3488125
AC188: - | AD188: --------------
Z189: TOTAL FIXED EXPENSES | AC189: =SUM(AC184:AC187) -> 23.6088125
Y190: TOTAL VARIABLE & FIXED EXPENSES | AC190: =AC180+AC189 -> 42.5610625
W193: LABOR EXPENSES
W194: LABOR | Z194: hour | AA194: 0.34 | AB194: =Data!$D$58 -> 10 | AC194: =AA194*AB194 -> 3.4
Y196: TOTAL ALL ANNUAL EXPENSES | AC196: =AC180+AC189+AC194 -> 45.9610625
W199: TABLE A6 | X199: WARM-SEASON PASTURE ESTABLISHMENT EXPENSES PER ACRE
W201: ITEM | X201: DESCRIPTION | Z201: UNIT | AA201: QUANTITY | AB201: PRICE | AC201: TOTAL | AD201: YOUR FARM
W202: VARIABLE EXPENSES
W203: Seed | X203: Sericea Lespedeza | Z203: lb | AA203: 15 | AB203: =Data!$D$16 -> 6.25 | AC203: =AA203*AB203 -> 93.75
Z204: lb | AA204: 0 | AB204: =Data!$D$17 -> 11 | AC204: =AA204*AB204 -> 0
Z205: lb | AA205: 0 | AB205: 0 | AC205: =AA205*AB205 -> 0
Z206: lb | AA206: 0 | AB206: 0 | AC206: 0
W207: Fertilizer | X207: N | Z207: lb | AA207: 0 | AB207: =Data!$D$20 -> 0.43 | AC207: =AA207*AB207 -> 0
X208: P2O5 | Z208: lb | AA208: 20 | AB208: =Data!$D$21 -> 0.52 | AC208: =AA208*AB208 -> 10.4
X209: K2O | Z209: lb | AA209: 20 | AB209: =Data!$D$22 -> 0.44 | AC209: =AA209*AB209 -> 8.8
X210: Custom Application | Z210: acre | AA210: 1 | AB210: =Data!$D$23 -> 5 | AC210: 5
W211: Lime | X211: Custom Application | Z211: acre | AA211: 2 | AB211: =Data!$D$24 -> 34.5 | AC211: 69
W212: Machinery | X212: Fuel | Z212: acre | AA212: 1 | AB212: =Data!$D$30 -> 20.24 | AC212: 20.24
X213: Oil & Filter | Z213: acre | AA213: 1 | AB213: =Data!$D$31 -> 3.04 | AC213: 3.04
X214: Repairs | Z214: acre | AA214: 1 | AB214: =Data!$D$32 -> 13.2 | AC214: 13.2
W215: Operating Interest - 6 months | AA215: =SUM(AC203:AC214) -> 223.43 | AB215: =Data!$D$59 -> 0.05 | AC215: =AA215*(AB215/2) -> 5.58575
AC216: - | AD216: --------------
Z217: TOTAL VARIABLE EXPENSES | AC217: =SUM(AC203:AC215) -> 229.01575
W220: DEPRECIATION AND INTEREST (FIXED COST)
W221: Machinery | X221: Depreciation | Z221: acre | AA221: 1 | AB221: =Data!$D$39 -> 6.08 | AC221: =AA221*AB221 -> 6.08
X222: Interest | Z222: acre | AA222: 1 | AB222: =Data!$D$40 -> 9.03 | AC222: 9.03
X223: Housing & Insurance | Z223: acre | AA223: 1 | AB223: =Data!$D$41 -> 0.96 | AC223: 0.96
AC224: - | AD224: --------------
Z225: TOTAL FIXED EXPENSES | AC225: =SUM(AC221:AC223) -> 16.07
Y226: TOTAL VARIABLE & FIXED EXPENSES | AC226: =AC217+AC225 -> 245.08575
W229: LABOR EXPENSES
W230: LABOR | Z230: hour | AA230: 2.31 | AB230: =Data!$D$58 -> 10 | AC230: =AA230*AB230 -> 23.1
Y232: TOTAL ESTABLISHMENT EXPENSES | AC232: =AC217+AC225+AC230 -> 268.18575
W234: PRO-RATED SHARE ESTABLISHMENT | Z234: years | AA234: 12 | AC234: =AC232/AA234 -> 22.3488125
AG243: TABLE A7 | AH243: VETERINARY AND MEDICINE EXPENSES
AK245: COST/ | AM245: YOUR
AG246: ITEM | AH246: DESCRIP. | AI246: DOSES | AJ246: HEAD | AK246: DOSE | AL246: TOTAL | AM246: FARM
AG247: Deworming | AH247: Does/Bucks | AI247: 3 | AJ247: =E10+E11 -> 51 | AK247: =Data!$D$44 -> 0.5 | AL247: =AI247*AJ247*AK247 -> 76.5
AG248: Clostridium/Tetanus | AH248: Does/Bucks | AI248: 1 | AJ248: =E10+E11 -> 51 | AK248: =Data!$D$45 -> 0.28 | AL248: =AI248*AJ248*AK248 -> 14.28
AG249: Lepto | AH249: Does/Bucks | AI249: 1 | AJ249: =E10+E11 -> 51 | AK249: =Data!$D$46 -> 0.37 | AL249: 18.87
AG250: Deworming | AH250: Replacements | AI250: 3 | AJ250: =E10*J16 -> 7.5 | AK250: =Data!$D$44 -> 0.5 | AL250: 11.25
AG251: Clostridium/Tetanus | AH251: Replacements | AI251: 1 | AJ251: =E10*J16 -> 7.5 | AK251: =Data!$D$45 -> 0.28 | AL251: 2.1
AG252: Lepto | AH252: Replacements | AI252: 1 | AJ252: =E10*J16 -> 7.5 | AK252: =Data!$D$46 -> 0.37 | AL252: 2.775
AG253: Clostridium/Tetanus | AH253: Kids | AI253: 2 | AJ253: =E10*J10 -> 75 | AK253: =Data!$D$45 -> 0.28 | AL253: 42
AG254: Lepto | AH254: Kids | AI254: 2 | AJ254: =E10*J10 -> 75 | AK254: =Data!$D$46 -> 0.37 | AL254: 55.5
AG255: Misc. Medicine | AH255: Per Doe | AJ255: =E10 -> 50 | AK255: 2 | AL255: =AJ255*AK255 -> 100
AL256: ------------- | AM256: -------------
AG257: TOTAL VETERINARY & MEDICINE EXPENSES | AL257: =SUM(AL247:AL255) -> 323.275
AG261: TABLE A8 | AH261: MARKETING EXPENSES
AI263: COST/ | AK263: YOUR
AG264: ITEM | AH264: HEAD | AI264: HEAD | AJ264: TOTAL | AK264: FARM
AG265: Auction Market Fee | AH265: =E12+E16 -> 70.25 | AI265: =Data!$D$49 -> 5.5 | AJ265: =AH265*AI265 -> 386.375
AG266: Auction Market Hauling | AH266: =E12+E16 -> 70.25 | AI266: =Data!$D$50 -> 1 | AJ266: =AH266*AI266 -> 70.25
AG267: Direct Sales Misc.Cost | AH267: =E14 -> 0 | AI267: =Data!$D$51 -> 4 | AJ267: 0
AG268: Direct Sales Hauling | AH268: =E14 -> 0 | AI268: =Data!$D$52 -> 2 | AJ268: 0
AG269: Misc. Marketing | AJ269: 0
... 28 more rows

Sheet 100does
F4: MEAT GOAT PRODUCTION (100 DOES AND 2 BUCKS)
F5: 20% OF KIDS DIRECT MARKETED
F6: FORAGE BASE OF 50 ACRES, ABOVE-AVERAGE MANAGEMENT
F7: ESTIMATED COSTS AND RETURNS TO LAND, MANAGEMENT AND RISK
B9: TABLE B1 | C9: INPUT PARAMETERS1
B10: Herd Size (Does) | E10: 100 | G10: Percent Weaned Kid Crop | J10: 1.75
B11: Bucks | E11: 2
B12: Kids Sold Auction Market (head) | E12: =J12*((E10*J10)-((E10*J10)*J16)) -> 119 | G12: Pct. Kids Auction Market | J12: 0.8
B13: Selling Weight Auction Market | E13: 65
B14: Kids Sold Direct (head) | E14: =J14*((E10*J10)-((E10*J10)*J16)) -> 29.75 | G14: Pct. Kids Direct Market | J14: 0.2
B15: Selling Weight Direct Market | E15: 65
B16: Number of Cull Stock Sold | E16: =(E10*J16)-E18 -> 13 | G16: Held for Replacements | J16: 0.15
B17: Selling Weight Cull Does | E17: 80
B18: Number of (Does) Died | E18: =E10*J18 -> 2 | G18: Doe Mortality Rate | J18: 0.02
B19: Lbs. Corn Doe/Day | E19: 0.5 | G19: Days on Corn (Does) | J19: 90
B20: Lbs. Hay Doe/Day | E20: 3 | G20: Days on Hay (Does) | J20: 120
B21: Lbs. Concentrate Kid/Day Pre-weaning | E21: 0.25 | G21: Days Pre-Weaning (Kids) | J21: 21
B22: Lbs. Concentrate Kid/Day Post-weaning | E22: 0.75 | G22: Days Post-weaning (Kids) | J22: 60
B23: Lbs. Hay Kid/Day | E23: 1 | G23: Days on Hay (Kids) | J23: 60
B24: Oz Mineral/Day | E24: 0.33 | G24: Acres in Forage | J24: 50
B26: TABLE B2 | C26: ESTIMATED COSTS AND RETURNS
B27: ITEM | C27: DESCRIPTION | E27: UNIT | F27: QUANTITY | G27: PRICE | H27: TOTAL | I27: PER DOE | J27: YOUR FARM
B28: REVENUE
B29: Kids Auction2 | C29: =E12 -> 119 | D29: Head | E29: cwt | F29: =(E12*E13)/100 -> 77.35 | G29: 120 | H29: =F29*G29 -> 9282 | I29: =H29/$E$10 -> 92.82
B30: Kids Direct2 | C30: =E14 -> 29.75 | D30: Head | E30: cwt | F30: =(E14*E15)/100 -> 19.3375 | G30: 200 | H30: =F30*G30 -> 3867.5 | I30: =H30/$E$10 -> 38.675
B31: Cull Doe | C31: =E16 -> 13 | D31: Head | E31: cwt | F31: =(E16*E17)/100 -> 10.4 | G31: 70 | H31: =F31*G31 -> 728 | I31: 7.28
H32: ---------------- | I32: ---------------- | J32: --------------
E33: TOTAL REVENUE | H33: =SUM(H29:H31) -> 13877.5 | I33: =SUM(I29:I31) -> 138.775
B35: VARIABLE EXPENSES
B36: Hay3 | E36: ton | F36: =((J20*E20*(E10+E11+(E10*J16)))/2000)+((J23*E23*(E10*J10))/2000) -> 26.31 | G36: =Data!$D$5 -> 80 | H36: =F36*G36 -> 2104.8 | I36: =H36/$E$10 -> 21.048
B37: Corn | D37: Breeding | E37: bushels | F37: =((E10+E11+(E10*J16))*E19*J19)/56 -> 94.01785714 | G37: =Data!$D$6 -> 4 | H37: =F37*G37 -> 376.0714286 | I37: 3.760714286
B38: Purchased Concentrate | D38: Kids | E38: cwt. | F38: =((J22*E22*(E10*J10))/100)+((J21*E21*(E10*J10))/100) -> 87.9375 | G38: =Data!$D$7 -> 14.8 | H38: =F38*G38 -> 1301.475 | I38: 13.01475
B39: Cool-Season Pasture4 | D39: Table B3 | E39: acre | F39: =J24*0.7 -> 35 | G39: =S118 -> 91.8357 | H39: =F39*G39 -> 3214.2495 | I39: 32.142495
B40: Warm-Season Pasture4 | D40: Table B5 | E40: acre | F40: =J24*0.3 -> 15 | G40: =AC196 -> 64.780825 | H40: 971.712375 | I40: 9.71712375
B41: Mineral Mix | E41: lb | F41: =(((E10+E11)*E24)/16)*365 -> 767.86875 | G41: =Data!$D$8 -> 0.36 | H41: 276.43275 | I41: 2.7643275
B42: Vet & Med | C42: Table B7 | H42: =AL257 -> 679.05 | I42: 6.7905
B43: Guardian Dogs5 | C43: Feed & Health | E43: each | F43: 2 | G43: =Data!$D$56 -> 250 | H43: =F43*G43 -> 500 | I43: 5
B44: Water6 | E44: 1,000 gal | F44: 70.5 | G44: =Data!$D$57 -> 6.6 | H44: 465.3 | I44: 4.653
B45: Marketing | C45: Table B8 | H45: =AJ271 -> 1036.5 | I45: 10.365
B46: Machinery7 | C46: Fuel | E46: hour | F46: 75 | G46: =Data!$D$33 -> 1.5 | H46: 112.5 | I46: 1.125
B47: Machinery | C47: Repairs | H47: =AW299 -> 280 | I47: 2.8
B48: Operating Interest - 6 months | F48: =SUM(H36:H47) -> 11318.09105 | G48: =Data!$D$59 -> 0.05 | H48: =F48*(G48/2) -> 282.9522763 | I48: 2.829522763
H49: - | I49: - | J49: --------------
E50: TOTAL VARIABLE EXPENSES | H50: =SUM(H36:H48) -> 11601.04333 | I50: =H50/$E$10 -> 116.0104333
D51: RETURN ABOVE VARIABLE EXPENSES | H51: =H33-H50 -> 2276.45667 | I51: 22.7645667
B53: DEPRECIATION AND REPAIRS (FIXED COST)8
B54: Depreciation | C54: Buildings, equipment | E54: Table B9 | H54: =AT285+AT286+AT287+AT288 -> 169.2 | I54: =H54/$E$10 -> 1.692
B55: Repairs | C55: Buildings, equipment | E55: Table B9 | H55: =AW285+AW286+AW287+AW288 -> 89.82 | I55: 0.8982
B56: Depreciation | C56: Livestock | E56: Table B9 | H56: =AT306 -> 275 | I56: 2.75
B57: Depreciation | C57: Fences | E57: Table B9 | H57: =AT289+AT290+AT291 -> 420.5101333 | I57: 4.205101333
B58: Repairs | C58: Fences | E58: Table B9 | H58: =AW289+AW290+AW291 -> 370.071 | I58: 3.70071
B59: Depreciation | C59: Machinery | E59: Table B9 | H59: =AT299 -> 466.6666667 | I59: 4.666666667
H60: - | I60: - | J60: --------------
E61: TOTAL FIXED EXPENSES | H61: =SUM(H54:H59) -> 1791.2678 | I61: =H61/$E$10 -> 17.912678
D62: TOTAL VARIABLE & FIXED EXPENSES | H62: =H50+H61 -> 13392.31113 | I62: 133.9231113
B63: RETURN TO LAND, LABOR, CAPITAL, MANAGEMENT, RISK | H63: =H51-H61 -> 485.1888701 | I63: 4.851888701
B65: INTEREST (FIXED COST)9
B66: Livestock | C66: Table B9 | H66: =AV306 -> 632.5 | I66: =H66/$E$10 -> 6.325
B67: Bldgs. & Equip | C67: Table B9 | H67: =AV285+AV286+AV287+AV288 -> 31.95 | I67: 0.3195
B68: Fences | C68: Table B9 | H68: =AV289+AV290+AV291 -> 185.0355 | I68: 1.850355
B69: Machinery | C69: Table B9 | H69: =AV299 -> 175 | I69: 1.75
H70: - | I70: - | J70: --------------
D71: TOTAL INTEREST EXPENSE | H71: =SUM(H66:H69) -> 1024.4855 | I71: =SUM(I66:I69) -> 10.244855
C72: TOTAL VARIABLE, FIXED, INTEREST EXPENSE | H72: =H62+H71 -> 14416.79663 | I72: =H72/$E$10 -> 144.1679663
B73: NET RETURN TO LAND, LABOR, MANAGEMENT, RISK | H73: =H63-H71 -> -539.2966299 | I73: -5.392966299
B75: LABOR EXPENSES
B76: LABOR10 | E76: hour | F76: 280 | G76: =Data!$D$58 -> 10 | H76: =F76*G76 -> 2800 | I76: =H76/$E$10 -> 28
D78: TOTAL ALL EXPENSES | H78: =H72+H76 -> 17216.79663 | I78: =H78/$E$10 -> 172.1679663
C79: RETURN TO LAND, MANAGEMENT, RISK | H79: =H73-H76 -> -3339.29663 | I79: -33.3929663
M87: TABLE B3 | N87: COOL-SEASON PASTURE, ANNUAL EXPENSES PER ACRE
M89: ITEM | N89: DESCRIPTION | P89: UNIT | Q89: QUANTITY | R89: PRICE | S89: TOTAL | T89: YOUR FARM
M90: VARIABLE EXPENSES
M91: Seed | P91: lb | Q91: 0 | R91: 0 | S91: =Q91*R91 -> 0
M92: Fertilizer | N92: N | P92: lb | Q92: 30 | R92: =Data!$D$20 -> 0.43 | S92: =Q92*R92 -> 12.9
N93: P2O5 | P93: lb | Q93: 30 | R93: =Data!$D$21 -> 0.52 | S93: =Q93*R93 -> 15.6
N94: K2O | P94: lb | Q94: 30 | R94: =Data!$D$22 -> 0.44 | S94: =Q94*R94 -> 13.2
N95: Custom Application | P95: acre | Q95: 1 | R95: =Data!$D$23 -> 5 | S95: 5
M96: Lime | N96: Custom Application | P96: acre | Q96: 0.2 | R96: =Data!$D$24 -> 34.5 | S96: 6.9
M97: Machinery | N97: Fuel | P97: acre | Q97: 1 | R97: =Data!$D$27 -> 1.82 | S97: 1.82
N98: Oil & Filter | P98: acre | Q98: 1 | R98: =Data!$D$28 -> 0.27 | S98: 0.27
N99: Repairs | P99: acre | Q99: 1 | R99: =Data!$D$29 -> 1.8 | S99: 1.8
M100: Operating Interest - 6 months | Q100: =SUM(S91:S99) -> 57.49 | R100: =Data!$D$59 -> 0.05 | S100: =Q100*(R100/2) -> 1.43725
S101: - | T101: --------------
P102: TOTAL VARIABLE EXPENSES | S102: =SUM(S91:S100) -> 58.92725
M105: DEPRECIATION AND INTEREST (FIXED COST)
M106: Machinery | N106: Depreciation | P106: acre | Q106: 1 | R106: =Data!$D$36 -> 0.46 | S106: =Q106*R106 -> 0.46
N107: Interest | P107: acre | Q107: 1 | R107: =Data!$D$37 -> 0.71 | S107: 0.71
N108: Housing & Insurance | P108: acre | Q108: 1 | R108: =Data!$D$38 -> 0.09 | S108: 0.09
M109: Establishment | N109: Pro-rated | P109: acre | Q109: 1 | R109: =S156 -> 28.24845 | S109: 28.24845
S110: - | T110: --------------
P111: TOTAL FIXED EXPENSES | S111: =SUM(S106:S109) -> 29.50845
O112: TOTAL VARIABLE & FIXED EXPENSES | S112: =S102+S111 -> 88.4357
M115: LABOR EXPENSES
M116: LABOR | P116: hour | Q116: 0.34 | R116: =Data!$D$58 -> 10 | S116: =Q116*R116 -> 3.4
O118: TOTAL ALL ANNUAL EXPENSES | S118: =S102+S111+S116 -> 91.8357
M121: TABLE B4 | N121: COOL-SEASON PASTURE, ESTABLISHMENT EXPENSES PER ACRE
M123: ITEM | N123: DESCRIPTION | P123: UNIT | Q123: QUANTITY | R123: PRICE | S123: TOTAL | T123: YOUR FARM
M124: VARIABLE EXPENSES
M125: Seed | N125: Orchardgrass | P125: lb | Q125: 10 | R125: =Data!$D$12 -> 4 | S125: =Q125*R125 -> 40
N126: Chicory | P126: lb | Q126: 3 | R126: =Data!$D$11 -> 6 | S126: =Q126*R126 -> 18
N127: Red Clover | P127: lb | Q127: 5 | R127: =Data!$D$14 -> 3.25 | S127: =Q127*R127 -> 16.25
N128: White Clover | P128: lb | Q128: 3 | R128: =Data!$D$15 -> 3.65 | S128: 10.95
M129: Fertilizer | N129: N | P129: lb | Q129: 30 | R129: =Data!$D$20 -> 0.43 | S129: =Q129*R129 -> 12.9
N130: P2O5 | P130: lb | Q130: 30 | R130: =Data!$D$21 -> 0.52 | S130: =Q130*R130 -> 15.6
N131: K2O | P131: lb | Q131: 30 | R131: =Data!$D$22 -> 0.44 | S131: =Q131*R131 -> 13.2
N132: Custom Application | P132: acre | Q132: 1 | R132: =Data!$D$23 -> 5 | S132: 5
M133: Lime | N133: Custom Application | P133: acre | Q133: 2 | R133: =Data!$D$24 -> 34.5 | S133: 69
M134: Machinery | N134: Fuel | P134: acre | Q134: 1 | R134: =Data!$D$30 -> 20.24 | S134: 20.24
N135: Oil & Filter | P135: acre | Q135: 1 | R135: =Data!$D$31 -> 3.04 | S135: 3.04
N136: Repairs | P136: acre | Q136: 1 | R136: =Data!$D$32 -> 13.2 | S136: 13.2
M137: Operating Interest - 6 months | Q137: =SUM(S125:S136) -> 237.38 | R137: =Data!$D$59 -> 0.05 | S137: =Q137*(R137/2) -> 5.9345
S138: - | T138: --------------
P139: TOTAL VARIABLE EXPENSES | S139: =SUM(S125:S137) -> 243.3145
M142: DEPRECIATION AND INTEREST (FIXED COST)
M143: Machinery | N143: Depreciation | P143: acre | Q143: 1 | R143: =Data!$D$39 -> 6.08 | S143: =Q143*R143 -> 6.08
N144: Interest | P144: acre | Q144: 1 | R144: =Data!$D$40 -> 9.03 | S144: 9.03
N145: Housing & Insurance | P145: acre | Q145: 1 | R145: =Data!$D$41 -> 0.96 | S145: 0.96
S146: - | T146: --------------
P147: TOTAL FIXED EXPENSES | S147: =SUM(S143:S145) -> 16.07
O148: TOTAL VARIABLE & FIXED EXPENSES | S148: =S139+S147 -> 259.3845
M151: LABOR EXPENSES
M152: LABOR | P152: hour | Q152: 2.31 | R152: =Data!$D$58 -> 10 | S152: =Q152*R152 -> 23.1
O154: TOTAL ESTABLISHMENT EXPENSES | S154: =S139+S147+S152 -> 282.4845
M156: PRO-RATED SHARE ESTABLISHMENT | P156: years | Q156: 10 | S156: =S154/Q156 -> 28.24845
W165: TABLE B5 | X165: WARM-SEASON PASTURE, ANNUAL EXPENSES PER ACRE
W167: ITEM | X167: DESCRIPTION | Z167: UNIT | AA167: QUANTITY | AB167: PRICE | AC167: TOTAL | AD167: YOUR FARM
W168: VARIABLE EXPENSES
W169: Seed | Z169: lb | AA169: 0 | AB169: 0 | AC169: =AA169*AB169 -> 0
W170: Fertilizer | X170: N | Z170: lb | AA170: 0 | AB170: =Data!$D$20 -> 0.43 | AC170: =AA170*AB170 -> 0
X171: P2O5 | Z171: lb | AA171: 20 | AB171: =Data!$D$21 -> 0.52 | AC171: =AA171*AB171 -> 10.4
X172: K2O | Z172: lb | AA172: 20 | AB172: =Data!$D$22 -> 0.44 | AC172: =AA172*AB172 -> 8.8
X173: Custom Application | Z173: acre | AA173: 1 | AB173: =Data!$D$23 -> 5 | AC173: 5
W174: Lime | X174: Custom Application | Z174: acre | AA174: 0 | AB174: =Data!$D$24 -> 34.5 | AC174: 0
W175: Machinery | X175: Fuel | Z175: acre | AA175: 1 | AB175: =Data!$D$27 -> 1.82 | AC175: 1.82
X176: Oil & Filter | Z176: acre | AA176: 1 | AB176: =Data!$D$28 -> 0.27 | AC176: 0.27
X177: Repairs | Z177: acre | AA177: 1 | AB177: =Data!$D$29 -> 1.8 | AC177: 1.8
W178: Operating Interest - 6 months | AA178: =SUM(AC169:AC177) -> 28.09 | AB178: =Data!$D$59 -> 0.05 | AC178: =AA178*(AB178/2) -> 0.70225
AC179: - | AD179: --------------
Z180: TOTAL VARIABLE EXPENSES | AC180: =SUM(AC169:AC178) -> 28.79225
W183: DEPRECIATION AND INTEREST (FIXED COST)
W184: Machinery | X184: Depreciation | Z184: acre | AA184: 1 | AB184: =Data!$D$36 -> 0.46 | AC184: =AA184*AB184 -> 0.46
X185: Interest | Z185: acre | AA185: 1 | AB185: =Data!$D$37 -> 0.71 | AC185: 0.71
X186: Housing & Insurance | Z186: acre | AA186: 1 | AB186: =Data!$D$38 -> 0.09 | AC186: 0.09
W187: Establishment | X187: Pro-rated | Z187: acre | AA187: 1 | AB187: =AC234 -> 31.328575 | AC187: 31.328575
AC188: - | AD188: --------------
Z189: TOTAL FIXED EXPENSES | AC189: =SUM(AC184:AC187) -> 32.588575
Y190: TOTAL VARIABLE & FIXED EXPENSES | AC190: =AC180+AC189 -> 61.380825
W193: LABOR EXPENSES
W194: LABOR | Z194: hour | AA194: 0.34 | AB194: =Data!$D$58 -> 10 | AC194: =AA194*AB194 -> 3.4
Y196: TOTAL ALL ANNUAL EXPENSES | AC196: =AC180+AC189+AC194 -> 64.780825
W199: TABLE B6 | X199: WARM-SEASON PASTURE ESTABLISHMENT EXPENSES PER ACRE
W201: ITEM | X201: DESCRIPTION | Z201: UNIT | AA201: QUANTITY | AB201: PRICE | AC201: TOTAL | AD201: YOUR FARM
W202: VARIABLE EXPENSES
W203: Seed | X203: Sericea Lespedeza | Z203: lb | AA203: 15 | AB203: =Data!$D$16 -> 6.25 | AC203: =AA203*AB203 -> 93.75
X204: Big Bluestem | Z204: lb | AA204: 4 | AB204: =Data!$D$17 -> 11 | AC204: =AA204*AB204 -> 44
Z205: lb | AA205: 0 | AB205: 0 | AC205: =AA205*AB205 -> 0
Z206: lb | AA206: 0 | AB206: 0 | AC206: 0
W207: Fertilizer | X207: N | Z207: lb | AA207: 0 | AB207: =Data!$D$20 -> 0.43 | AC207: =AA207*AB207 -> 0
X208: P2O5 | Z208: lb | AA208: 20 | AB208: =Data!$D$21 -> 0.52 | AC208: =AA208*AB208 -> 10.4
X209: K2O | Z209: lb | AA209: 20 | AB209: =Data!$D$22 -> 0.44 | AC209: =AA209*AB209 -> 8.8
X210: Custom Application | Z210: acre | AA210: 1 | AB210: =Data!$D$23 -> 5 | AC210: 5
W211: Lime | X211: Custom Application | Z211: acre | AA211: 2 | AB211: =Data!$D$24 -> 34.5 | AC211: 69
W212: Machinery | X212: Fuel | Z212: acre | AA212: 1 | AB212: =Data!$D$30 -> 20.24 | AC212: 20.24
X213: Oil & Filter | Z213: acre | AA213: 1 | AB213: =Data!$D$31 -> 3.04 | AC213: 3.04
X214: Repairs | Z214: acre | AA214: 1 | AB214: =Data!$D$32 -> 13.2 | AC214: 13.2
W215: Operating Interest - 6 months | AA215: =SUM(AC203:AC214) -> 267.43 | AB215: =Data!$D$59 -> 0.05 | AC215: =AA215*(AB215/2) -> 6.68575
AC216: - | AD216: --------------
Z217: TOTAL VARIABLE EXPENSES | AC217: =SUM(AC203:AC215) -> 274.11575
W220: DEPRECIATION AND INTEREST (FIXED COST)
W221: Machinery | X221: Depreciation | Z221: acre | AA221: 1 | AB221: =Data!$D$39 -> 6.08 | AC221: =AA221*AB221 -> 6.08
X222: Interest | Z222: acre | AA222: 1 | AB222: =Data!$D$40 -> 9.03 | AC222: 9.03
X223: Housing & Insurance | Z223: acre | AA223: 1 | AB223: =Data!$D$41 -> 0.96 | AC223: 0.96
AC224: - | AD224: --------------
Z225: TOTAL FIXED EXPENSES | AC225: =SUM(AC221:AC223) -> 16.07
Y226: TOTAL VARIABLE & FIXED EXPENSES | AC226: =AC217+AC225 -> 290.18575
W229: LABOR EXPENSES
W230: LABOR | Z230: hour | AA230: 2.31 | AB230: =Data!$D$58 -> 10 | AC230: =AA230*AB230 -> 23.1
Y232: TOTAL ESTABLISHMENT EXPENSES | AC232: =AC217+AC225+AC230 -> 313.28575
W234: PRO-RATED SHARE ESTABLISHMENT | Z234: years | AA234: 10 | AC234: =AC232/AA234 -> 31.328575
AG243: TABLE B7 | AH243: VETERINARY AND MEDICINE EXPENSES
AK245: COST/ | AM245: YOUR
AG246: ITEM | AH246: DESCRIP. | AI246: DOSES | AJ246: HEAD | AK246: DOSE | AL246: TOTAL | AM246: FARM
AG247: Deworming | AH247: Does/Bucks | AI247: 3 | AJ247: =E10+E11 -> 102 | AK247: =Data!$D$44 -> 0.5 | AL247: =AI247*AJ247*AK247 -> 153
AG248: Clostridium/Tetanus | AH248: Does/Bucks | AI248: 1 | AJ248: =E10+E11 -> 102 | AK248: =Data!$D$45 -> 0.28 | AL248: =AI248*AJ248*AK248 -> 28.56
AG249: Lepto | AH249: Does/Bucks | AI249: 1 | AJ249: =E10+E11 -> 102 | AK249: =Data!$D$46 -> 0.37 | AL249: 37.74
AG250: Deworming | AH250: Replacements | AI250: 3 | AJ250: =E10*J16 -> 15 | AK250: =Data!$D$44 -> 0.5 | AL250: 22.5
AG251: Clostridium/Tetanus | AH251: Replacements | AI251: 1 | AJ251: =E10*J16 -> 15 | AK251: =Data!$D$45 -> 0.28 | AL251: 4.2
AG252: Lepto | AH252: Replacements | AI252: 1 | AJ252: =E10*J16 -> 15 | AK252: =Data!$D$46 -> 0.37 | AL252: 5.55
AG253: Clostridium/Tetanus | AH253: Kids | AI253: 2 | AJ253: =E10*J10 -> 175 | AK253: =Data!$D$45 -> 0.28 | AL253: 98
AG254: Lepto | AH254: Kids | AI254: 2 | AJ254: =E10*J10 -> 175 | AK254: =Data!$D$46 -> 0.37 | AL254: 129.5
AG255: Misc. Medicine | AH255: Per Doe | AJ255: =E10 -> 100 | AK255: 2 | AL255: =AJ255*AK255 -> 200
AL256: ------------- | AM256: -------------
AG257: TOTAL VETERINARY & MEDICINE EXPENSES | AL257: =SUM(AL247:AL255) -> 679.05
AG261: TABLE B8 | AH261: MARKETING EXPENSES
AI263: COST/ | AK263: YOUR
AG264: ITEM | AH264: HEAD | AI264: HEAD | AJ264: TOTAL | AK264: FARM
AG265: Auction Market Fee | AH265: =E12+E16 -> 132 | AI265: =Data!$D$49 -> 5.5 | AJ265: =AH265*AI265 -> 726
AG266: Auction Market Hauling | AH266: =E12+E16 -> 132 | AI266: =Data!$D$50 -> 1 | AJ266: =AH266*AI266 -> 132
AG267: Direct Sales Misc.Cost | AH267: =E14 -> 29.75 | AI267: =Data!$D$51 -> 4 | AJ267: 119
AG268: Direct Sales Hauling | AH268: =E14 -> 29.75 | AI268: =Data!$D$52 -> 2 | AJ268: 59.5
... 29 more rows

Sheet 180does
F4: MEAT GOAT PRODUCTION (180 DOES AND 4 BUCKS)
F5: 40% OF KIDS DIRECT MARKETED
F6: FORAGE BASE OF 100 ACRES, HIGH INTENSITY MANAGEMENT
F7: ESTIMATED COSTS AND RETURNS TO LAND, MANAGEMENT AND RISK
B9: TABLE C1 | C9: INPUT PARAMETERS1
B10: Herd Size (Does) | E10: 180 | G10: Percent Weaned Kid Crop | J10: 2.1
B11: Bucks | E11: 4
B12: Kids Sold Auction Market (head) | E12: =J12*((E10*J10)-((E10*J10)*J16)) -> 192.78 | G12: Pct. Kids Auction Market | J12: 0.6
B13: Selling Weight Auction Market | E13: 65
B14: Kids Sold Direct (head) | E14: =J14*((E10*J10)-((E10*J10)*J16)) -> 128.52 | G14: Pct. Kids Direct Market | J14: 0.4
B15: Selling Weight Direct Market | E15: 65
B16: Number of Cull Stock Sold | E16: =(E10*J16)-E18 -> 23.4 | G16: Held for Replacements | J16: 0.15
B17: Selling Weight Cull Does | E17: 80
B18: Number of (Does) Died | E18: =E10*J18 -> 3.6 | G18: Doe Mortality Rate | J18: 0.02
B19: Lbs. Corn Doe/Day | E19: 0.5 | G19: Days on Corn (Does) | J19: 90
B20: Lbs. Hay Doe/Day | E20: 2 | G20: Days on Hay (Does) | J20: 120
B21: Lbs. Corn Kid/Day Pre-weaning | E21: 0.25 | G21: Days Pre-Weaning (Kids) | J21: 21
B22: Lbs. Corn Kid/Day Post-weaning | E22: 0.75 | G22: Days Post-weaning (Kids) | J22: 60
B23: Lbs. Hay Kid/Day | E23: 1 | G23: Days on Hay (Kids) | J23: 60
B24: Oz Mineral/Day | E24: 0.33 | G24: Acres in Forage | J24: 100
B26: TABLE C2 | C26: ESTIMATED COSTS AND RETURNS
B27: ITEM | C27: DESCRIPTION | E27: UNIT | F27: QUANTITY | G27: PRICE | H27: TOTAL | I27: PER DOE | J27: YOUR FARM
B28: REVENUE
B29: Kids Auction2 | C29: =E12 -> 192.78 | D29: Head | E29: cwt | F29: =(E12*E13)/100 -> 125.307 | G29: 122 | H29: =F29*G29 -> 15287.454 | I29: =H29/$E$10 -> 84.9303
B30: Kids Direct2 | C30: =E14 -> 128.52 | D30: Head | E30: cwt | F30: =(E14*E15)/100 -> 83.538 | G30: 200 | H30: =F30*G30 -> 16707.6 | I30: =H30/$E$10 -> 92.82
B31: Cull Doe | C31: =E16 -> 23.4 | D31: Head | E31: cwt | F31: =(E16*E17)/100 -> 18.72 | G31: 70 | H31: =F31*G31 -> 1310.4 | I31: 7.28
H32: ---------------- | I32: ---------------- | J32: --------------
E33: TOTAL REVENUE | H33: =SUM(H29:H31) -> 33305.454 | I33: =SUM(I29:I31) -> 185.0303
B35: VARIABLE EXPENSES
B36: Hay3 | E36: ton | F36: =((J20*E20*(E10+E11+(E10*J16)))/2000)+((J23*E23*(E10*J10))/2000) -> 36.66 | G36: =Data!$D$5 -> 80 | H36: =F36*G36 -> 2932.8 | I36: =H36/$E$10 -> 16.29333333
B37: Corn | D37: Breeding | E37: bushels | F37: =((E10+E11+(E10*J16))*E19*J19)/56 -> 169.5535714 | G37: =Data!$D$6 -> 4 | H37: =F37*G37 -> 678.2142857 | I37: 3.767857143
B38: Corn | D38: Kids | E38: bushels | F38: =((J22*E22*(E10*J10))/56)+((J21*E21*(E10*J10))/56) -> 339.1875 | G38: =Data!$D$6 -> 4 | H38: =F38*G38 -> 1356.75 | I38: 7.5375
B39: Cool-Season Pasture4 | D39: Table C3 | E39: acre | F39: =J24*0.7 -> 70 | G39: =S118 -> 91.8357 | H39: =F39*G39 -> 6428.499 | I39: 35.71388333
B40: Warm-Season Pasture4 | D40: Table C5 | E40: acre | F40: =J24*0.3 -> 30 | G40: =AC196 -> 64.780825 | H40: =F40*G40 -> 1943.42475 | I40: 10.79680417
B41: Mineral Mix | E41: lb | F41: =(((E10+E11)*E24)/16)*365 -> 1385.175 | G41: =Data!$D$8 -> 0.36 | H41: 498.663 | I41: 2.77035
B42: Vet & Med | C42: Table C7 | H42: =AL257 -> 988.55 | I42: 5.491944444
B43: Guardian Dogs5 | C43: Feed & Health | E43: each | F43: 4 | G43: =Data!$D$56 -> 250 | H43: =F43*G43 -> 1000 | I43: 5.555555556
B44: Water6 | E44: 1,000 gal | F44: 132.57 | G44: =Data!$D$57 -> 6.6 | H44: 874.962 | I44: 4.8609
B45: Marketing | C45: Table C8 | H45: =AJ271 -> 2176.29 | I45: 12.0905
B46: Machinery7 | C46: Fuel | E46: hour | F46: 115 | G46: =Data!$D$33 -> 1.5 | H46: 172.5 | I46: 0.9583333333
B47: Machinery | C47: Repairs | H47: =AW299 -> 280 | I47: 1.555555556
B48: Operating Interest - 6 months | F48: =SUM(H36:H47) -> 19330.65304 | G48: =Data!$D$59 -> 0.05 | H48: =F48*(G48/2) -> 483.2663259 | I48: 2.684812922
H49: - | I49: - | J49: --------------
E50: TOTAL VARIABLE EXPENSES | H50: =SUM(H36:H48) -> 19813.91936 | I50: =H50/$E$10 -> 110.0773298
D51: RETURN ABOVE VARIABLE EXPENSES | H51: =H33-H50 -> 13491.53464 | I51: 74.95297021
B53: DEPRECIATION AND REPAIRS (FIXED COST)8
B54: Depreciation | C54: Buildings, equipment | E54: Table C9 | H54: =AT285+AT286+AT287+AT288 -> 293 | I54: =H54/$E$10 -> 1.627777778
B55: Repairs | C55: Buildings, equipment | E55: Table C9 | H55: =AW285+AW286+AW287+AW288 -> 168.29 | I55: 0.9349444444
B56: Depreciation | C56: Livestock | E56: Table C9 | H56: =AT306 -> 550 | I56: 3.055555556
B57: Depreciation | C57: Fences | E57: Table C9 | H57: =AT289+AT290+AT291 -> 747.9221333 | I57: 4.155122963
B58: Repairs | C58: Fences | E58: Table C9 | H58: =AW289+AW290+AW291 -> 552.62 | I58: 3.070111111
B59: Depreciation | C59: Machinery | E59: Table C9 | H59: =AT299 -> 466.6666667 | I59: 2.592592593
H60: - | I60: - | J60: --------------
E61: TOTAL FIXED EXPENSES | H61: =SUM(H54:H59) -> 2778.4988 | I61: =H61/$E$10 -> 15.43610444
D62: TOTAL VARIABLE & FIXED EXPENSES | H62: =H50+H61 -> 22592.41816 | I62: 125.5134342
B63: RETURN TO LAND, LABOR, CAPITAL, MANAGEMENT, RISK | H63: =H51-H61 -> 10713.03584 | I63: 59.51686577
B65: INTEREST (FIXED COST)9
B66: Livestock | C66: Table C9 | H66: =AV306 -> 1150 | I66: =H66/$E$10 -> 6.388888889
B67: Bldgs. & Equip | C67: Table C9 | H67: =AV285+AV286+AV287+AV288 -> 58.225 | I67: 0.3234722222
B68: Fences | C68: Table C9 | H68: =AV289+AV290+AV291 -> 276.31 | I68: 1.535055556
B69: Machinery | C69: Table C9 | H69: =AV299 -> 175 | I69: 0.9722222222
H70: - | I70: - | J70: --------------
D71: TOTAL INTEREST EXPENSE | H71: =SUM(H66:H69) -> 1659.535 | I71: =SUM(I66:I69) -> 9.219638889
C72: TOTAL VARIABLE, FIXED, INTEREST EXPENSE | H72: =H62+H71 -> 24251.95316 | I72: =H72/$E$10 -> 134.7330731
B73: NET RETURN TO LAND, LABOR, MANAGEMENT, RISK | H73: =H63-H71 -> 9053.500838 | I73: 50.29722688
B75: LABOR EXPENSES
B76: LABOR10 | E76: hour | F76: 470 | G76: =Data!$D$58 -> 10 | H76: =F76*G76 -> 4700 | I76: =H76/$E$10 -> 26.11111111
D78: TOTAL ALL EXPENSES | H78: =H72+H76 -> 28951.95316 | I78: =H78/$E$10 -> 160.8441842
C79: RETURN TO LAND, MANAGEMENT, RISK | H79: =H73-H76 -> 4353.500838 | I79: 24.18611577
M87: TABLE C3 | N87: COOL-SEASON PASTURE, ANNUAL EXPENSES PER ACRE
M89: ITEM | N89: DESCRIPTION | P89: UNIT | Q89: QUANTITY | R89: PRICE | S89: TOTAL | T89: YOUR FARM
M90: VARIABLE EXPENSES
M91: Seed | P91: lb | Q91: 0 | R91: 0 | S91: =Q91*R91 -> 0
M92: Fertilizer | N92: N | P92: lb | Q92: 30 | R92: =Data!$D$20 -> 0.43 | S92: =Q92*R92 -> 12.9
N93: P2O5 | P93: lb | Q93: 30 | R93: =Data!$D$21 -> 0.52 | S93: =Q93*R93 -> 15.6
N94: K2O | P94: lb | Q94: 30 | R94: =Data!$D$22 -> 0.44 | S94: =Q94*R94 -> 13.2
N95: Custom Application | P95: acre | Q95: 1 | R95: =Data!$D$23 -> 5 | S95: 5
M96: Lime | N96: Custom Application | P96: acre | Q96: 0.2 | R96: =Data!$D$24 -> 34.5 | S96: 6.9
M97: Machinery | N97: Fuel | P97: acre | Q97: 1 | R97: =Data!$D$27 -> 1.82 | S97: 1.82
N98: Oil & Filter | P98: acre | Q98: 1 | R98: =Data!$D$28 -> 0.27 | S98: 0.27
N99: Repairs | P99: acre | Q99: 1 | R99: =Data!$D$29 -> 1.8 | S99: 1.8
M100: Operating Interest - 6 months | Q100: =SUM(S91:S99) -> 57.49 | R100: =Data!$D$59 -> 0.05 | S100: =Q100*(R100/2) -> 1.43725
S101: - | T101: --------------
P102: TOTAL VARIABLE EXPENSES | S102: =SUM(S91:S100) -> 58.92725
M105: DEPRECIATION AND INTEREST (FIXED COST)
M106: Machinery | N106: Depreciation | P106: acre | Q106: 1 | R106: =Data!$D$36 -> 0.46 | S106: =Q106*R106 -> 0.46
N107: Interest | P107: acre | Q107: 1 | R107: =Data!$D$37 -> 0.71 | S107: 0.71
N108: Housing & Insurance | P108: acre | Q108: 1 | R108: =Data!$D$38 -> 0.09 | S108: 0.09
M109: Establishment | N109: Pro-rated | P109: acre | Q109: 1 | R109: =S156 -> 28.24845 | S109: 28.24845
S110: - | T110: --------------
P111: TOTAL FIXED EXPENSES | S111: =SUM(S106:S109) -> 29.50845
O112: TOTAL VARIABLE & FIXED EXPENSES | S112: =S102+S111 -> 88.4357
M115: LABOR EXPENSES
M116: LABOR | P116: hour | Q116: 0.34 | R116: =Data!$D$58 -> 10 | S116: =Q116*R116 -> 3.4
O118: TOTAL ALL ANNUAL EXPENSES | S118: =S102+S111+S116 -> 91.8357
M121: TABLE C4 | N121: COOL-SEASON PASTURE, ESTABLISHMENT EXPENSES PER ACRE
M123: ITEM | N123: DESCRIPTION | P123: UNIT | Q123: QUANTITY | R123: PRICE | S123: TOTAL | T123: YOUR FARM
M124: VARIABLE EXPENSES
M125: Seed | N125: Orchardgrass | P125: lb | Q125: 10 | R125: =Data!$D$12 -> 4 | S125: =Q125*R125 -> 40
N126: Chicory | P126: lb | Q126: 3 | R126: =Data!$D$11 -> 6 | S126: =Q126*R126 -> 18
N127: Red Clover | P127: lb | Q127: 5 | R127: =Data!$D$14 -> 3.25 | S127: =Q127*R127 -> 16.25
N128: White Clover | P128: lb | Q128: 3 | R128: =Data!$D$15 -> 3.65 | S128: 10.95
M129: Fertilizer | N129: N | P129: lb | Q129: 30 | R129: =Data!$D$20 -> 0.43 | S129: =Q129*R129 -> 12.9
N130: P2O5 | P130: lb | Q130: 30 | R130: =Data!$D$21 -> 0.52 | S130: =Q130*R130 -> 15.6
N131: K2O | P131: lb | Q131: 30 | R131: =Data!$D$22 -> 0.44 | S131: =Q131*R131 -> 13.2
N132: Custom Application | P132: acre | Q132: 1 | R132: =Data!$D$23 -> 5 | S132: 5
M133: Lime | N133: Custom Application | P133: acre | Q133: 2 | R133: =Data!$D$24 -> 34.5 | S133: 69
M134: Machinery | N134: Fuel | P134: acre | Q134: 1 | R134: =Data!$D$30 -> 20.24 | S134: 20.24
N135: Oil & Filter | P135: acre | Q135: 1 | R135: =Data!$D$31 -> 3.04 | S135: 3.04
N136: Repairs | P136: acre | Q136: 1 | R136: =Data!$D$32 -> 13.2 | S136: 13.2
M137: Operating Interest - 6 months | Q137: =SUM(S125:S136) -> 237.38 | R137: =Data!$D$59 -> 0.05 | S137: =Q137*(R137/2) -> 5.9345
S138: - | T138: --------------
P139: TOTAL VARIABLE EXPENSES | S139: =SUM(S125:S137) -> 243.3145
M142: DEPRECIATION AND INTEREST (FIXED COST)
M143: Machinery | N143: Depreciation | P143: acre | Q143: 1 | R143: =Data!$D$39 -> 6.08 | S143: =Q143*R143 -> 6.08
N144: Interest | P144: acre | Q144: 1 | R144: =Data!$D$40 -> 9.03 | S144: 9.03
N145: Housing & Insurance | P145: acre | Q145: 1 | R145: =Data!$D$41 -> 0.96 | S145: 0.96
S146: - | T146: --------------
P147: TOTAL FIXED EXPENSES | S147: =SUM(S143:S145) -> 16.07
O148: TOTAL VARIABLE & FIXED EXPENSES | S148: =S139+S147 -> 259.3845
M151: LABOR EXPENSES
M152: LABOR | P152: hour | Q152: 2.31 | R152: =Data!$D$58 -> 10 | S152: =Q152*R152 -> 23.1
O154: TOTAL ESTABLISHMENT EXPENSES | S154: =S139+S147+S152 -> 282.4845
M156: PRO-RATED SHARE ESTABLISHMENT | P156: years | Q156: 10 | S156: =S154/Q156 -> 28.24845
W165: TABLE C5 | X165: WARM-SEASON PASTURE, ANNUAL EXPENSES PER ACRE
W167: ITEM | X167: DESCRIPTION | Z167: UNIT | AA167: QUANTITY | AB167: PRICE | AC167: TOTAL | AD167: YOUR FARM
W168: VARIABLE EXPENSES
W169: Seed | Z169: lb | AA169: 0 | AB169: 0 | AC169: =AA169*AB169 -> 0
W170: Fertilizer | X170: N | Z170: lb | AA170: 0 | AB170: =Data!$D$20 -> 0.43 | AC170: =AA170*AB170 -> 0
X171: P2O5 | Z171: lb | AA171: 20 | AB171: =Data!$D$21 -> 0.52 | AC171: =AA171*AB171 -> 10.4
X172: K2O | Z172: lb | AA172: 20 | AB172: =Data!$D$22 -> 0.44 | AC172: =AA172*AB172 -> 8.8
X173: Custom Application | Z173: acre | AA173: 1 | AB173: =Data!$D$23 -> 5 | AC173: 5
W174: Lime | X174: Custom Application | Z174: acre | AA174: 0 | AB174: =Data!$D$24 -> 34.5 | AC174: 0
W175: Machinery | X175: Fuel | Z175: acre | AA175: 1 | AB175: =Data!$D$27 -> 1.82 | AC175: 1.82
X176: Oil & Filter | Z176: acre | AA176: 1 | AB176: =Data!$D$28 -> 0.27 | AC176: 0.27
X177: Repairs | Z177: acre | AA177: 1 | AB177: =Data!$D$29 -> 1.8 | AC177: 1.8
W178: Operating Interest - 6 months | AA178: =SUM(AC169:AC177) -> 28.09 | AB178: =Data!$D$59 -> 0.05 | AC178: =AA178*(AB178/2) -> 0.70225
AC179: - | AD179: --------------
Z180: TOTAL VARIABLE EXPENSES | AC180: =SUM(AC169:AC178) -> 28.79225
W183: DEPRECIATION AND INTEREST (FIXED COST)
W184: Machinery | X184: Depreciation | Z184: acre | AA184: 1 | AB184: =Data!$D$36 -> 0.46 | AC184: =AA184*AB184 -> 0.46
X185: Interest | Z185: acre | AA185: 1 | AB185: =Data!$D$37 -> 0.71 | AC185: 0.71
X186: Housing & Insurance | Z186: acre | AA186: 1 | AB186: =Data!$D$38 -> 0.09 | AC186: 0.09
W187: Establishment | X187: Pro-rated | Z187: acre | AA187: 1 | AB187: =AC234 -> 31.328575 | AC187: 31.328575
AC188: - | AD188: --------------
Z189: TOTAL FIXED EXPENSES | AC189: =SUM(AC184:AC187) -> 32.588575
Y190: TOTAL VARIABLE & FIXED EXPENSES | AC190: =AC180+AC189 -> 61.380825
W193: LABOR EXPENSES
W194: LABOR | Z194: hour | AA194: 0.34 | AB194: =Data!$D$58 -> 10 | AC194: =AA194*AB194 -> 3.4
Y196: TOTAL ALL ANNUAL EXPENSES | AC196: =AC180+AC189+AC194 -> 64.780825
W199: TABLE C6 | X199: WARM-SEASON PASTURE ESTABLISHMENT EXPENSES PER ACRE
W201: ITEM | X201: DESCRIPTION | Z201: UNIT | AA201: QUANTITY | AB201: PRICE | AC201: TOTAL | AD201: YOUR FARM
W202: VARIABLE EXPENSES
W203: Seed | X203: Sericea Lespedeza | Z203: lb | AA203: 15 | AB203: =Data!$D$16 -> 6.25 | AC203: =AA203*AB203 -> 93.75
X204: Big Bluestem | Z204: lb | AA204: 4 | AB204: =Data!$D$17 -> 11 | AC204: =AA204*AB204 -> 44
Z205: lb | AA205: 0 | AB205: 0 | AC205: =AA205*AB205 -> 0
Z206: lb | AA206: 0 | AB206: 0 | AC206: 0
W207: Fertilizer | X207: N | Z207: lb | AA207: 0 | AB207: =Data!$D$20 -> 0.43 | AC207: =AA207*AB207 -> 0
X208: P2O5 | Z208: lb | AA208: 20 | AB208: =Data!$D$21 -> 0.52 | AC208: =AA208*AB208 -> 10.4
X209: K2O | Z209: lb | AA209: 20 | AB209: =Data!$D$22 -> 0.44 | AC209: =AA209*AB209 -> 8.8
X210: Custom Application | Z210: acre | AA210: 1 | AB210: =Data!$D$23 -> 5 | AC210: 5
W211: Lime | X211: Custom Application | Z211: acre | AA211: 2 | AB211: =Data!$D$24 -> 34.5 | AC211: 69
W212: Machinery | X212: Fuel | Z212: acre | AA212: 1 | AB212: =Data!$D$30 -> 20.24 | AC212: 20.24
X213: Oil & Filter | Z213: acre | AA213: 1 | AB213: =Data!$D$31 -> 3.04 | AC213: 3.04
X214: Repairs | Z214: acre | AA214: 1 | AB214: =Data!$D$32 -> 13.2 | AC214: 13.2
W215: Operating Interest - 6 months | AA215: =SUM(AC203:AC214) -> 267.43 | AB215: =Data!$D$59 -> 0.05 | AC215: =AA215*(AB215/2) -> 6.68575
AC216: - | AD216: --------------
Z217: TOTAL VARIABLE EXPENSES | AC217: =SUM(AC203:AC215) -> 274.11575
W220: DEPRECIATION AND INTEREST (FIXED COST)
W221: Machinery | X221: Depreciation | Z221: acre | AA221: 1 | AB221: =Data!$D$39 -> 6.08 | AC221: =AA221*AB221 -> 6.08
X222: Interest | Z222: acre | AA222: 1 | AB222: =Data!$D$40 -> 9.03 | AC222: 9.03
X223: Housing & Insurance | Z223: acre | AA223: 1 | AB223: =Data!$D$41 -> 0.96 | AC223: 0.96
AC224: - | AD224: --------------
Z225: TOTAL FIXED EXPENSES | AC225: =SUM(AC221:AC223) -> 16.07
Y226: TOTAL VARIABLE & FIXED EXPENSES | AC226: =AC217+AC225 -> 290.18575
W229: LABOR EXPENSES
W230: LABOR | Z230: hour | AA230: 2.31 | AB230: =Data!$D$58 -> 10 | AC230: =AA230*AB230 -> 23.1
Y232: TOTAL ESTABLISHMENT EXPENSES | AC232: =AC217+AC225+AC230 -> 313.28575
W234: PRO-RATED SHARE ESTABLISHMENT | Z234: years | AA234: 10 | AC234: =AC232/AA234 -> 31.328575
AG243: TABLE C7 | AH243: VETERINARY AND MEDICINE EXPENSES
AK245: COST/ | AM245: YOUR
AG246: ITEM | AH246: DESCRIP. | AI246: DOSES | AJ246: HEAD | AK246: DOSE | AL246: TOTAL | AM246: FARM
AG247: Deworming | AH247: Does/Bucks | AI247: 0 | AJ247: =E10+E11 -> 184 | AK247: =Data!$D$44 -> 0.5 | AL247: =AI247*AJ247*AK247 -> 0
AG248: Clostridium/Tetanus | AH248: Does/Bucks | AI248: 1 | AJ248: =E10+E11 -> 184 | AK248: =Data!$D$45 -> 0.28 | AL248: =AI248*AJ248*AK248 -> 51.52
AG249: Lepto | AH249: Does/Bucks | AI249: 1 | AJ249: =E10+E11 -> 184 | AK249: =Data!$D$46 -> 0.37 | AL249: 68.08
AG250: Deworming | AH250: Replacements | AI250: 0 | AJ250: =E10*J16 -> 27 | AK250: =Data!$D$44 -> 0.5 | AL250: 0
AG251: Clostridium/Tetanus | AH251: Replacements | AI251: 1 | AJ251: =E10*J16 -> 27 | AK251: =Data!$D$45 -> 0.28 | AL251: 7.56
AG252: Lepto | AH252: Replacements | AI252: 1 | AJ252: =E10*J16 -> 27 | AK252: =Data!$D$46 -> 0.37 | AL252: 9.99
AG253: Clostridium/Tetanus | AH253: Kids | AI253: 2 | AJ253: =E10*J10 -> 378 | AK253: =Data!$D$45 -> 0.28 | AL253: 211.68
AG254: Lepto | AH254: Kids | AI254: 2 | AJ254: =E10*J10 -> 378 | AK254: =Data!$D$46 -> 0.37 | AL254: 279.72
AG255: Misc. Medicine | AH255: Per Doe | AJ255: =E10 -> 180 | AK255: 2 | AL255: =AJ255*AK255 -> 360
AL256: ------------- | AM256: -------------
AG257: TOTAL VETERINARY & MEDICINE EXPENSES | AL257: =SUM(AL247:AL255) -> 988.55
AG261: TABLE C8 | AH261: MARKETING EXPENSES
AI263: COST/ | AK263: YOUR
AG264: ITEM | AH264: HEAD | AI264: HEAD | AJ264: TOTAL | AK264: FARM
AG265: Auction Market Fee | AH265: =E12+E16 -> 216.18 | AI265: =Data!$D$49 -> 5.5 | AJ265: =AH265*AI265 -> 1188.99
AG266: Auction Market Hauling | AH266: =E12+E16 -> 216.18 | AI266: =Data!$D$50 -> 1 | AJ266: =AH266*AI266 -> 216.18
AG267: Direct Sales Misc.Cost | AH267: =E14 -> 128.52 | AI267: =Data!$D$51 -> 4 | AJ267: 514.08
AG268: Direct Sales Hauling | AH268: =E14 -> 128.52 | AI268: =Data!$D$52 -> 2 | AJ268: 257.04
... 29 more rows
